[Event "Titled Tuesday Blitz June 6 Early 2023"]
[White "Diaz Rosas, Julio Cesar"]
[Black "Garcia Cuenca, Victor"]
[WhiteFideId "5105099"]
[BlackFideId "2250829"]
[WhiteElo "2284"]
[BlackElo "2329"]
[Result "1-0"]
[Round "11"]
[TimeControl "180+2"]
[Date "2023.06.06"]
[WhiteClock "0:00:37"]
[BlackClock "0:00:01"]
[Board "68"]

1. e4 {[%clk 0:03:00]}  c5 {[%clk 0:02:59]} 2. Nf3 {[%clk 0:02:57]}  e6 {[%clk 0:02:55]} 3. d4 {[%clk 0:02:56]}  cxd4 {[%clk 0:02:54]} 4. Nxd4 {[%clk 0:02:57]}  a6 {[%clk 0:02:54]} 5. c4 {[%clk 0:02:57]}  d6 {[%clk 0:02:53]} 6. Nc3 {[%clk 0:02:56]}  Nf6 {[%clk 0:02:53]} 7. Be2 {[%clk 0:02:57]}  Be7 {[%clk 0:02:54]} 8. O-O {[%clk 0:02:57]}  O-O {[%clk 0:02:54]} 9. b4 {[%clk 0:02:55]}  b6 {[%clk 0:02:55]} 10. Bb2 {[%clk 0:02:54]}  Bb7 {[%clk 0:02:55]} 11. Qd3 {[%clk 0:02:54]}  Nbd7 {[%clk 0:02:56]} 12. f4 {[%clk 0:02:55]}  Rc8 {[%clk 0:02:56]} 13. Rac1 {[%clk 0:02:55]}  Qc7 {[%clk 0:02:49]} 14. a3 {[%clk 0:02:53]}  Qb8 {[%clk 0:02:47]} 15. g4 {[%clk 0:02:52]}  Rfd8 {[%clk 0:02:38]} 16. g5 {[%clk 0:02:49]}  Ne8 {[%clk 0:02:36]} 17. Qh3 {[%clk 0:02:48]}  Bf8 {[%clk 0:02:10]} 18. f5 {[%clk 0:02:31]}  e5 {[%clk 0:02:08]} 19. g6 {[%clk 0:02:30]}  Nef6 {[%clk 0:01:57]} 20. gxf7+ {[%clk 0:02:25]}  Kxf7 {[%clk 0:01:58]} 21. Ne6 {[%clk 0:02:25]}  Re8 {[%clk 0:01:41]} 22. Nd5 {[%clk 0:01:58]}  b5 {[%clk 0:01:28]} 23. cxb5 {[%clk 0:01:43]}  axb5 {[%clk 0:01:29]} 24. Nxf6 {[%clk 0:01:41]}  Nxf6 {[%clk 0:01:27]} 25. Bxb5 {[%clk 0:01:39]}  Bc6 {[%clk 0:00:50]} 26. Bxc6 {[%clk 0:01:26]}  Qb6+ {[%clk 0:00:50]} 27. Bd4 {[%clk 0:01:25]}  exd4 {[%clk 0:00:49]} 28. Bxe8+ {[%clk 0:01:24]}  Rxe8 {[%clk 0:00:48]} 29. Qb3 {[%clk 0:01:09]}  d5 {[%clk 0:00:43]} 30. exd5 {[%clk 0:01:05]}  Bd6 {[%clk 0:00:42]} 31. Rc6 {[%clk 0:01:03]}  Qb8 {[%clk 0:00:40]} 32. Rf2 {[%clk 0:01:01]}  Ng4 {[%clk 0:00:19]} 33. Rg2 {[%clk 0:00:56]}  Bxh2+ {[%clk 0:00:19]} 34. Kh1 {[%clk 0:00:56]}  h5 {[%clk 0:00:16]} 35. d6 {[%clk 0:00:54]}  Kf6 {[%clk 0:00:09]} 36. Qd5 {[%clk 0:00:50]}  Qa8 {[%clk 0:00:04]} 37. d7 {[%clk 0:00:42]}  Qxa3 {[%clk 0:00:04]} 38. dxe8=N+ {[%clk 0:00:41]}  Ke7 {[%clk 0:00:02]} 39. Qc5+ {[%clk 0:00:38]}  Kf7 {[%clk 0:00:01]} 40. Qf8# {[%clk 0:00:37]} 1-0


[Site "https://www.chess.com"]

[Event "Titled Tuesday Blitz June 6 Early 2023"]
[White "Garcia Blanco, Omar"]
[Black "Sanhueza, Cristian"]
[WhiteFideId "2287153"]
[BlackFideId "116815"]
[WhiteElo "2356"]
[BlackElo "2174"]
[Result "0-1"]
[Round "11"]
[TimeControl "180+2"]
[Date "2023.06.06"]
[WhiteClock "0:00:03"]
[BlackClock "0:00:03"]
[Board "69"]

1. e4 {[%clk 0:03:00]}  e5 {[%clk 0:02:54]} 2. Nc3 {[%clk 0:03:01]}  Nf6 {[%clk 0:02:54]} 3. Bc4 {[%clk 0:03:01]}  Nc6 {[%clk 0:02:52]} 4. d3 {[%clk 0:03:01]}  Bc5 {[%clk 0:02:53]} 5. f4 {[%clk 0:03:01]}  d6 {[%clk 0:02:54]} 6. Nf3 {[%clk 0:03:01]}  Bg4 {[%clk 0:02:54]} 7. Na4 {[%clk 0:02:40]}  Bb6 {[%clk 0:02:54]} 8. Nxb6 {[%clk 0:02:38]}  axb6 {[%clk 0:02:55]} 9. a3 {[%clk 0:02:27]}  O-O {[%clk 0:02:54]} 10. h3 {[%clk 0:02:25]}  Be6 {[%clk 0:02:20]} 11. Bxe6 {[%clk 0:02:09]}  fxe6 {[%clk 0:02:21]} 12. fxe5 {[%clk 0:02:10]}  dxe5 {[%clk 0:02:11]} 13. O-O {[%clk 0:02:10]}  Qe7 {[%clk 0:02:06]} 14. Be3 {[%clk 0:02:09]}  Rad8 {[%clk 0:02:03]} 15. Nd2 {[%clk 0:01:53]}  Qf7 {[%clk 0:02:00]} 16. Kh2 {[%clk 0:01:21]}  Qg6 {[%clk 0:01:59]} 17. g4 {[%clk 0:01:16]}  h5 {[%clk 0:01:30]} 18. g5 {[%clk 0:01:13]}  Nd7 {[%clk 0:01:30]} 19. h4 {[%clk 0:01:09]}  Rxf1 {[%clk 0:01:28]} 20. Qxf1 {[%clk 0:01:10]}  Rf8 {[%clk 0:01:29]} 21. Qe2 {[%clk 0:00:56]}  Nd4 {[%clk 0:01:28]} 22. Bxd4 {[%clk 0:00:56]}  exd4 {[%clk 0:01:29]} 23. Rf1 {[%clk 0:00:57]}  Rxf1 {[%clk 0:01:23]} 24. Qxf1 {[%clk 0:00:58]}  Ne5 {[%clk 0:01:22]} 25. Qf4 {[%clk 0:00:56]}  Ng4+ {[%clk 0:01:19]} 26. Kg3 {[%clk 0:00:56]}  e5 {[%clk 0:01:14]} 27. Qf1 {[%clk 0:00:22]}  Ne3 {[%clk 0:01:12]} 28. Qh3 {[%clk 0:00:22]}  Qf7 {[%clk 0:01:04]} 29. Qc8+ {[%clk 0:00:20]}  Kh7 {[%clk 0:01:04]} 30. Nf3 {[%clk 0:00:20]}  Qf4+ {[%clk 0:01:04]} 31. Kf2 {[%clk 0:00:21]}  Ng4+ {[%clk 0:01:00]} 32. Kg2 {[%clk 0:00:19]}  Ne3+ {[%clk 0:00:47]} 33. Kf2 {[%clk 0:00:20]}  Nxc2 {[%clk 0:00:42]} 34. Qe8 {[%clk 0:00:17]}  Qg4 {[%clk 0:00:10]} 35. Qxe5 {[%clk 0:00:08]}  Ne3 {[%clk 0:00:11]} 36. g6+ {[%clk 0:00:06]}  Qxg6 {[%clk 0:00:06]} 37. Ng5+ {[%clk 0:00:04]}  Kg8 {[%clk 0:00:07]} 38. Qxd4 {[%clk 0:00:03]}  Ng4+ {[%clk 0:00:06]} 39. Ke2 {[%clk 0:00:03]}  Qf6 {[%clk 0:00:03]} 40. Qd8+ {[%clk 0:00:03]}  Qxd8 {[%clk 0:00:03]} 0-1


[Site "https://www.chess.com"]

[Event "Titled Tuesday Blitz June 6 Early 2023"]
[White "Liu, Casper"]
[Black "Matveeva, Olga"]
[WhiteFideId "1454153"]
[BlackFideId "24107018"]
[WhiteElo "2221"]
[BlackElo "2009"]
[Result "1-0"]
[Round "11"]
[TimeControl "180+2"]
[Date "2023.06.06"]
[WhiteClock "0:00:15"]
[BlackClock "0:00:05"]
[Board "72"]

1. e4 {[%clk 0:03:00]}  e6 {[%clk 0:03:00]} 2. Nf3 {[%clk 0:02:55]}  d5 {[%clk 0:02:59]} 3. Nc3 {[%clk 0:02:56]}  Nf6 {[%clk 0:02:55]} 4. Qe2 {[%clk 0:02:56]}  Be7 {[%clk 0:02:45]} 5. d4 {[%clk 0:02:54]}  dxe4 {[%clk 0:02:36]} 6. Nxe4 {[%clk 0:02:53]}  Nbd7 {[%clk 0:02:36]} 7. h4 {[%clk 0:02:51]}  Nxe4 {[%clk 0:02:34]} 8. Qxe4 {[%clk 0:02:52]}  Nf6 {[%clk 0:02:35]} 9. Qd3 {[%clk 0:02:40]}  Bd7 {[%clk 0:02:34]} 10. Bg5 {[%clk 0:02:37]}  Bc6 {[%clk 0:02:33]} 11. O-O-O {[%clk 0:02:37]}  Qd5 {[%clk 0:02:06]} 12. Kb1 {[%clk 0:02:34]}  Qa5 {[%clk 0:01:47]} 13. Ne5 {[%clk 0:02:31]}  Be4 {[%clk 0:01:43]} 14. Qe3 {[%clk 0:02:24]}  Bf5 {[%clk 0:01:10]} 15. Bxf6 {[%clk 0:01:49]}  gxf6 {[%clk 0:00:59]} 16. g4 {[%clk 0:01:50]}  Bxc2+ {[%clk 0:00:45]} 17. Kxc2 {[%clk 0:01:49]}  fxe5 {[%clk 0:00:45]} 18. dxe5 {[%clk 0:01:40]}  Qxa2 {[%clk 0:00:39]} 19. Qe4 {[%clk 0:01:08]}  c6 {[%clk 0:00:23]} 20. Rh3 {[%clk 0:00:52]}  Qa5 {[%clk 0:00:21]} 21. Rhd3 {[%clk 0:00:41]}  Rd8 {[%clk 0:00:18]} 22. Kb1 {[%clk 0:00:34]}  Rxd3 {[%clk 0:00:17]} 23. Bxd3 {[%clk 0:00:31]}  Qd5 {[%clk 0:00:14]} 24. Qf4 {[%clk 0:00:26]}  Qc5 {[%clk 0:00:12]} 25. g5 {[%clk 0:00:21]}  Kf8 {[%clk 0:00:09]} 26. h5 {[%clk 0:00:20]}  h6 {[%clk 0:00:08]} 27. g6 {[%clk 0:00:19]}  f5 {[%clk 0:00:06]} 28. exf6 {[%clk 0:00:15]}  Bd6 {[%clk 0:00:05]} 29. g7+ {[%clk 0:00:15]}  Kf7 {[%clk 0:00:05]} 30. Bg6+ {[%clk 0:00:15]} 1-0


[Site "https://www.chess.com"]

[Event "Titled Tuesday Blitz June 6 Early 2023"]
[White "Moore, Nicholas"]
[Black "Jaskolka, Tomasz"]
[WhiteFideId "4303709"]
[BlackFideId "1170791"]
[WhiteElo "2418"]
[BlackElo "2155"]
[Result "1-0"]
[Round "11"]
[TimeControl "180+2"]
[Date "2023.06.06"]
[WhiteClock "0:00:06"]
[BlackClock "0:00:02"]
[Board "73"]

1. c4 {[%clk 0:03:00]}  e6 {[%clk 0:02:52]} 2. g3 {[%clk 0:03:00]}  f5 {[%clk 0:02:52]} 3. Bg2 {[%clk 0:02:56]}  Nf6 {[%clk 0:02:53]} 4. Nf3 {[%clk 0:02:56]}  Be7 {[%clk 0:02:53]} 5. O-O {[%clk 0:02:55]}  O-O {[%clk 0:02:54]} 6. d4 {[%clk 0:02:55]}  d6 {[%clk 0:02:54]} 7. b3 {[%clk 0:02:54]}  Ne4 {[%clk 0:02:53]} 8. Bb2 {[%clk 0:02:54]}  Bf6 {[%clk 0:02:52]} 9. Qc2 {[%clk 0:02:46]}  Nc6 {[%clk 0:02:45]} 10. Rd1 {[%clk 0:02:43]}  Qe8 {[%clk 0:02:41]} 11. Ne1 {[%clk 0:02:41]}  Nb4 {[%clk 0:02:13]} 12. Qc1 {[%clk 0:02:39]}  e5 {[%clk 0:02:01]} 13. d5 {[%clk 0:02:09]}  Bg5 {[%clk 0:01:48]} 14. e3 {[%clk 0:02:04]}  Nf6 {[%clk 0:01:41]} 15. a3 {[%clk 0:01:50]}  Na6 {[%clk 0:01:41]} 16. f4 {[%clk 0:01:41]}  Bh6 {[%clk 0:01:27]} 17. b4 {[%clk 0:01:29]}  Bd7 {[%clk 0:01:19]} 18. Nf3 {[%clk 0:01:21]}  Qh5 {[%clk 0:01:01]} 19. Nbd2 {[%clk 0:01:09]}  Ng4 {[%clk 0:00:55]} 20. Nf1 {[%clk 0:01:09]}  Rae8 {[%clk 0:00:38]} 21. h3 {[%clk 0:01:04]}  Nxe3 {[%clk 0:00:35]} 22. Qxe3 {[%clk 0:00:57]}  exf4 {[%clk 0:00:35]} 23. Qf2 {[%clk 0:00:58]}  fxg3 {[%clk 0:00:35]} 24. Nxg3 {[%clk 0:00:58]}  Qg6 {[%clk 0:00:32]} 25. Re1 {[%clk 0:00:54]}  f4 {[%clk 0:00:30]} 26. Nf1 {[%clk 0:00:50]}  Bxh3 {[%clk 0:00:30]} 27. N1h2 {[%clk 0:00:38]}  Bf5 {[%clk 0:00:27]} 28. Nh4 {[%clk 0:00:36]}  Qh5 {[%clk 0:00:20]} 29. Nxf5 {[%clk 0:00:28]}  Qxf5 {[%clk 0:00:20]} 30. Nf3 {[%clk 0:00:27]}  Nb8 {[%clk 0:00:20]} 31. Nd4 {[%clk 0:00:26]}  Qg4 {[%clk 0:00:19]} 32. Rxe8 {[%clk 0:00:25]}  Rxe8 {[%clk 0:00:19]} 33. Ne6 {[%clk 0:00:25]}  Nd7 {[%clk 0:00:19]} 34. Re1 {[%clk 0:00:17]}  Nb6 {[%clk 0:00:14]} 35. Re4 {[%clk 0:00:13]}  Qf5 {[%clk 0:00:05]} 36. Qf3 {[%clk 0:00:12]}  Nd7 {[%clk 0:00:04]} 37. Bh3 {[%clk 0:00:13]}  Qg6+ {[%clk 0:00:03]} 38. Kf1 {[%clk 0:00:10]}  Ne5 {[%clk 0:00:03]} 39. Bxe5 {[%clk 0:00:09]}  dxe5 {[%clk 0:00:04]} 40. Rxe5 {[%clk 0:00:09]}  Qb1+ {[%clk 0:00:05]} 41. Re1 {[%clk 0:00:10]}  Qc2 {[%clk 0:00:05]} 42. Qe4 {[%clk 0:00:09]}  Qh2 {[%clk 0:00:03]} 43. Bg2 {[%clk 0:00:09]}  Qg3 {[%clk 0:00:04]} 44. Qf3 {[%clk 0:00:09]}  Qg6 {[%clk 0:00:04]} 45. Re4 {[%clk 0:00:09]}  Qf5 {[%clk 0:00:03]} 46. b5 {[%clk 0:00:06]}  g5 {[%clk 0:00:03]} 47. Bh3 {[%clk 0:00:06]}  Qf6 {[%clk 0:00:01]} 48. Bg4 {[%clk 0:00:06]}  c6 {[%clk 0:00:02]} 49. d6 {[%clk 0:00:06]} 1-0


[Site "https://www.chess.com"]

[Event "Titled Tuesday Blitz June 6 Early 2023"]
[White "Lopez Idarraga, Daniel Eduardo"]
[Black "Sharapov, Evgeny"]
[WhiteFideId "4405501"]
[BlackFideId "14103133"]
[WhiteElo "1980"]
[BlackElo "2367"]
[Result "1-0"]
[Round "11"]
[TimeControl "180+2"]
[Date "2023.06.06"]
[WhiteClock "0:00:27"]
[BlackClock "0:00:51"]
[Board "74"]

1. d4 {[%clk 0:03:00]}  Nf6 {[%clk 0:02:59]} 2. Bf4 {[%clk 0:03:00]}  c5 {[%clk 0:02:57]} 3. e3 {[%clk 0:03:01]}  e6 {[%clk 0:02:57]} 4. c3 {[%clk 0:03:00]}  Nc6 {[%clk 0:02:57]} 5. Nd2 {[%clk 0:03:01]}  d5 {[%clk 0:02:57]} 6. Ngf3 {[%clk 0:03:01]}  Bd6 {[%clk 0:02:57]} 7. Bg3 {[%clk 0:02:59]}  O-O {[%clk 0:02:57]} 8. Bd3 {[%clk 0:02:59]}  b6 {[%clk 0:02:57]} 9. Qe2 {[%clk 0:02:57]}  Bb7 {[%clk 0:02:57]} 10. e4 {[%clk 0:02:57]}  dxe4 {[%clk 0:02:56]} 11. Nxe4 {[%clk 0:02:58]}  Be7 {[%clk 0:02:50]} 12. dxc5 {[%clk 0:02:56]}  bxc5 {[%clk 0:02:49]} 13. O-O {[%clk 0:02:52]}  Qb6 {[%clk 0:02:40]} 14. Rfd1 {[%clk 0:02:46]}  Rad8 {[%clk 0:02:36]} 15. h3 {[%clk 0:01:19]}  Rd5 {[%clk 0:02:26]} 16. Nxf6+ {[%clk 0:01:16]}  Bxf6 {[%clk 0:02:25]} 17. Be4 {[%clk 0:01:15]}  Rxd1+ {[%clk 0:02:22]} 18. Rxd1 {[%clk 0:01:16]}  Rd8 {[%clk 0:02:19]} 19. a4 {[%clk 0:01:13]}  g6 {[%clk 0:02:04]} 20. Rxd8+ {[%clk 0:01:04]}  Qxd8 {[%clk 0:01:57]} 21. Qb5 {[%clk 0:01:02]}  Qb6 {[%clk 0:01:56]} 22. Qxb6 {[%clk 0:00:58]}  axb6 {[%clk 0:01:56]} 23. Bc7 {[%clk 0:00:59]}  Na5 {[%clk 0:01:30]} 24. Bxb7 {[%clk 0:00:55]}  Nxb7 {[%clk 0:01:30]} 25. Bxb6 {[%clk 0:00:56]}  Bd8 {[%clk 0:01:26]} 26. Bxd8 {[%clk 0:00:51]}  Nxd8 {[%clk 0:01:26]} 27. a5 {[%clk 0:00:52]}  Nc6 {[%clk 0:01:26]} 28. a6 {[%clk 0:00:50]}  f6 {[%clk 0:01:21]} 29. Nd2 {[%clk 0:00:46]}  Kf7 {[%clk 0:01:20]} 30. Ne4 {[%clk 0:00:46]}  Ke7 {[%clk 0:01:19]} 31. Nxc5 {[%clk 0:00:45]}  Kd6 {[%clk 0:01:19]} 32. b4 {[%clk 0:00:45]}  e5 {[%clk 0:01:17]} 33. Kf1 {[%clk 0:00:44]}  Kd5 {[%clk 0:01:12]} 34. Ke2 {[%clk 0:00:43]}  Kc4 {[%clk 0:01:12]} 35. Kd2 {[%clk 0:00:43]}  Na7 {[%clk 0:01:09]} 36. Nd7 {[%clk 0:00:39]}  f5 {[%clk 0:01:02]} 37. Nxe5+ {[%clk 0:00:38]}  Kb5 {[%clk 0:01:03]} 38. Kd3 {[%clk 0:00:36]}  Kxa6 {[%clk 0:01:03]} 39. Kc4 {[%clk 0:00:36]}  Kb6 {[%clk 0:01:02]} 40. f4 {[%clk 0:00:34]}  Kc7 {[%clk 0:01:01]} 41. Kd5 {[%clk 0:00:33]}  Nb5 {[%clk 0:01:01]} 42. c4 {[%clk 0:00:33]}  Nc3+ {[%clk 0:01:01]} 43. Ke6 {[%clk 0:00:31]}  Ne2 {[%clk 0:01:01]} 44. Nd3 {[%clk 0:00:29]}  Ng3 {[%clk 0:00:51]} 45. Kf6 {[%clk 0:00:28]}  Nf1 {[%clk 0:00:51]} 46. Kg7 {[%clk 0:00:28]}  Ne3 {[%clk 0:00:51]} 47. Kxh7 {[%clk 0:00:27]}  Nxg2 {[%clk 0:00:51]} 48. Kxg6 {[%clk 0:00:27]} 1-0


[Site "https://www.chess.com"]

[Event "Titled Tuesday Blitz June 6 Early 2023"]
[White "Vivas Zamora, Fabian Ernesto"]
[Black "Ginzburg, Yakov"]
[WhiteFideId "3902480"]
[BlackFideId "4157176"]
[WhiteElo "2244"]
[BlackElo "2305"]
[Result "1-0"]
[Round "11"]
[TimeControl "180+2"]
[Date "2023.06.06"]
[WhiteClock "0:00:06"]
[BlackClock "0:00:04"]
[Board "75"]

1. e4 {[%clk 0:03:00]}  c5 {[%clk 0:02:59]} 2. Nf3 {[%clk 0:02:56]}  e6 {[%clk 0:02:59]} 3. d4 {[%clk 0:02:54]}  cxd4 {[%clk 0:02:59]} 4. Nxd4 {[%clk 0:02:55]}  Nf6 {[%clk 0:02:59]} 5. Nc3 {[%clk 0:02:53]}  Nc6 {[%clk 0:02:58]} 6. Nxc6 {[%clk 0:02:52]}  bxc6 {[%clk 0:02:58]} 7. e5 {[%clk 0:02:52]}  Nd5 {[%clk 0:02:58]} 8. Ne4 {[%clk 0:02:52]}  Qc7 {[%clk 0:02:58]} 9. f4 {[%clk 0:02:52]}  Qb6 {[%clk 0:02:59]} 10. c4 {[%clk 0:02:52]}  Ne3 {[%clk 0:02:58]} 11. Qd3 {[%clk 0:02:38]}  Bb4+ {[%clk 0:02:57]} 12. Ke2 {[%clk 0:02:29]}  Nxc4 {[%clk 0:02:57]} 13. Kf3 {[%clk 0:02:21]}  Ba6 {[%clk 0:02:48]} 14. Qb3 {[%clk 0:02:14]}  Na5 {[%clk 0:02:08]} 15. Qa4 {[%clk 0:01:59]}  Bxf1 {[%clk 0:02:02]} 16. Rxf1 {[%clk 0:01:57]}  Qb5 {[%clk 0:02:02]} 17. Qxb5 {[%clk 0:01:55]}  cxb5 {[%clk 0:02:01]} 18. Rd1 {[%clk 0:01:31]}  a6 {[%clk 0:01:35]} 19. a4 {[%clk 0:01:17]}  Nb3 {[%clk 0:01:35]} 20. Ra2 {[%clk 0:01:10]}  Ke7 {[%clk 0:01:34]} 21. Be3 {[%clk 0:01:04]}  f5 {[%clk 0:00:45]} 22. exf6+ {[%clk 0:01:03]}  gxf6 {[%clk 0:00:45]} 23. Rd3 {[%clk 0:01:00]}  f5 {[%clk 0:00:42]} 24. Rxb3 {[%clk 0:00:57]}  fxe4+ {[%clk 0:00:41]} 25. Kxe4 {[%clk 0:00:58]}  d5+ {[%clk 0:00:40]} 26. Kf3 {[%clk 0:00:58]}  a5 {[%clk 0:00:32]} 27. axb5 {[%clk 0:00:57]}  Rab8 {[%clk 0:00:32]} 28. b6 {[%clk 0:00:41]}  Rhf8 {[%clk 0:00:27]} 29. g3 {[%clk 0:00:20]}  e5 {[%clk 0:00:25]} 30. Rxb4 {[%clk 0:00:17]}  axb4 {[%clk 0:00:25]} 31. Bc5+ {[%clk 0:00:17]}  Kf7 {[%clk 0:00:23]} 32. Ra7+ {[%clk 0:00:17]}  Ke6 {[%clk 0:00:21]} 33. Bxf8 {[%clk 0:00:16]}  Rxf8 {[%clk 0:00:17]} 34. b7 {[%clk 0:00:10]}  Rb8 {[%clk 0:00:13]} 35. Ra6+ {[%clk 0:00:10]}  Kf7 {[%clk 0:00:11]} 36. Rb6 {[%clk 0:00:08]}  exf4 {[%clk 0:00:10]} 37. Kxf4 {[%clk 0:00:08]}  Ke7 {[%clk 0:00:10]} 38. Rxb4 {[%clk 0:00:08]}  Kd6 {[%clk 0:00:10]} 39. Ke3 {[%clk 0:00:04]}  Kc5 {[%clk 0:00:09]} 40. Rb3 {[%clk 0:00:05]}  d4+ {[%clk 0:00:02]} 41. Kd3 {[%clk 0:00:05]}  Kc6 {[%clk 0:00:01]} 42. g4 {[%clk 0:00:04]}  Kc7 {[%clk 0:00:02]} 43. h4 {[%clk 0:00:03]}  h6 {[%clk 0:00:02]} 44. g5 {[%clk 0:00:03]}  hxg5 {[%clk 0:00:02]} 45. hxg5 {[%clk 0:00:04]}  Kd7 {[%clk 0:00:01]} 46. g6 {[%clk 0:00:04]}  Ke7 {[%clk 0:00:02]} 47. Kxd4 {[%clk 0:00:04]}  Kf6 {[%clk 0:00:02]} 48. Kc5 {[%clk 0:00:05]}  Kxg6 {[%clk 0:00:03]} 49. Kc6 {[%clk 0:00:06]}  Rf8 {[%clk 0:00:03]} 50. b8=Q {[%clk 0:00:05]}  Rf6+ {[%clk 0:00:04]} 51. Qd6 {[%clk 0:00:06]} 1-0


[Site "https://www.chess.com"]

[Event "Titled Tuesday Blitz June 6 Early 2023"]
[White "Zheenbekov, Nurgazy"]
[Black "Bogaudinov, Rushan"]
[WhiteFideId "13800485"]
[BlackFideId "4129288"]
[WhiteElo "1975"]
[BlackElo "1967"]
[Result "1-0"]
[Round "11"]
[TimeControl "180+2"]
[Date "2023.06.06"]
[WhiteClock "0:00:18"]
[BlackClock "0:00:09"]
[Board "77"]

1. e4 {[%clk 0:02:59]}  a6 {[%clk 0:02:49]} 2. d4 {[%clk 0:02:58]}  e6 {[%clk 0:02:48]} 3. Nf3 {[%clk 0:02:58]}  b5 {[%clk 0:02:47]} 4. Bd3 {[%clk 0:02:56]}  Bb7 {[%clk 0:02:47]} 5. O-O {[%clk 0:02:56]}  c5 {[%clk 0:02:45]} 6. dxc5 {[%clk 0:02:47]}  Bxc5 {[%clk 0:02:44]} 7. a4 {[%clk 0:02:46]}  b4 {[%clk 0:02:43]} 8. Bg5 {[%clk 0:02:44]}  Qc7 {[%clk 0:02:39]} 9. Nbd2 {[%clk 0:02:41]}  Nc6 {[%clk 0:02:39]} 10. Nc4 {[%clk 0:02:36]}  Nge7 {[%clk 0:02:13]} 11. e5 {[%clk 0:02:35]}  Ng6 {[%clk 0:02:06]} 12. Qe2 {[%clk 0:02:28]}  O-O {[%clk 0:01:59]} 13. h4 {[%clk 0:02:22]}  d5 {[%clk 0:01:54]} 14. exd6 {[%clk 0:02:15]}  Bxd6 {[%clk 0:01:54]} 15. h5 {[%clk 0:02:14]}  Nge5 {[%clk 0:01:41]} 16. Nxd6 {[%clk 0:01:41]}  Qxd6 {[%clk 0:01:32]} 17. Be4 {[%clk 0:01:40]}  Nxf3+ {[%clk 0:01:04]} 18. Qxf3 {[%clk 0:01:38]}  Nd4 {[%clk 0:00:53]} 19. Bxh7+ {[%clk 0:01:38]}  Kxh7 {[%clk 0:00:49]} 20. Qxb7 {[%clk 0:01:38]}  Qc5 {[%clk 0:00:39]} 21. Qe4+ {[%clk 0:01:30]}  f5 {[%clk 0:00:36]} 22. Qe3 {[%clk 0:01:18]}  Rac8 {[%clk 0:00:35]} 23. Rad1 {[%clk 0:01:05]}  Nxc2 {[%clk 0:00:34]} 24. Qxe6 {[%clk 0:01:04]}  f4 {[%clk 0:00:30]} 25. Qg6+ {[%clk 0:01:01]}  Kg8 {[%clk 0:00:30]} 26. Rd7 {[%clk 0:00:59]}  Qe5 {[%clk 0:00:22]} 27. h6 {[%clk 0:00:54]}  Rc7 {[%clk 0:00:18]} 28. Rxg7+ {[%clk 0:00:32]}  Rxg7 {[%clk 0:00:18]} 29. hxg7 {[%clk 0:00:32]}  Qxg7 {[%clk 0:00:18]} 30. Qxc2 {[%clk 0:00:29]}  Qxg5 {[%clk 0:00:18]} 31. Qc4+ {[%clk 0:00:28]}  Kg7 {[%clk 0:00:17]} 32. Qd4+ {[%clk 0:00:27]}  Rf6 {[%clk 0:00:13]} 33. Rc1 {[%clk 0:00:26]}  f3 {[%clk 0:00:13]} 34. Rc7+ {[%clk 0:00:25]}  Kg6 {[%clk 0:00:12]} 35. Qe4+ {[%clk 0:00:24]}  Qf5 {[%clk 0:00:12]} 36. gxf3 {[%clk 0:00:24]}  Kh6 {[%clk 0:00:09]} 37. Qh4+ {[%clk 0:00:18]} 1-0


[Site "https://www.chess.com"]

[Event "Titled Tuesday Blitz June 6 Early 2023"]
[White "Orujov2008"]
[Black "Lacasa Diaz, Jose Antonio"]
[BlackFideId "2203375"]
[WhiteElo "2492"]
[BlackElo "2338"]
[Result "1-0"]
[Round "11"]
[TimeControl "180+2"]
[Date "2023.06.06"]
[WhiteClock "0:00:20"]
[BlackClock "0:00:19"]
[Board "79"]

1. e4 {[%clk 0:03:00]}  c5 {[%clk 0:02:59]} 2. Nf3 {[%clk 0:03:01]}  Nf6 {[%clk 0:03:00]} 3. Nc3 {[%clk 0:03:00]}  d5 {[%clk 0:03:00]} 4. exd5 {[%clk 0:03:00]}  Nxd5 {[%clk 0:03:00]} 5. Nxd5 {[%clk 0:02:59]}  Qxd5 {[%clk 0:02:59]} 6. Bb5+ {[%clk 0:02:58]}  Bd7 {[%clk 0:02:58]} 7. Bxd7+ {[%clk 0:02:58]}  Nxd7 {[%clk 0:02:55]} 8. O-O {[%clk 0:02:59]}  e5 {[%clk 0:02:54]} 9. Re1 {[%clk 0:02:58]}  O-O-O {[%clk 0:02:51]} 10. Qe2 {[%clk 0:02:58]}  f6 {[%clk 0:02:51]} 11. d3 {[%clk 0:02:58]}  Nb8 {[%clk 0:02:49]} 12. Be3 {[%clk 0:02:58]}  Nc6 {[%clk 0:02:49]} 13. a3 {[%clk 0:02:58]}  Kb8 {[%clk 0:02:43]} 14. Rab1 {[%clk 0:02:57]}  Nd4 {[%clk 0:02:39]} 15. Nxd4 {[%clk 0:02:45]}  cxd4 {[%clk 0:02:40]} 16. Bd2 {[%clk 0:02:44]}  Rc8 {[%clk 0:02:40]} 17. c4 {[%clk 0:02:44]}  dxc3 {[%clk 0:02:38]} 18. Bxc3 {[%clk 0:02:44]}  Bc5 {[%clk 0:02:37]} 19. Red1 {[%clk 0:02:43]}  Rhd8 {[%clk 0:02:35]} 20. Rbc1 {[%clk 0:02:38]}  Bd4 {[%clk 0:02:27]} 21. h3 {[%clk 0:02:33]}  a6 {[%clk 0:02:23]} 22. Bxd4 {[%clk 0:01:54]}  Qxd4 {[%clk 0:02:19]} 23. Rxc8+ {[%clk 0:01:54]}  Rxc8 {[%clk 0:02:19]} 24. Rd2 {[%clk 0:01:55]}  Rc1+ {[%clk 0:02:15]} 25. Kh2 {[%clk 0:01:53]}  Qf4+ {[%clk 0:02:10]} 26. g3 {[%clk 0:01:49]}  Qd4 {[%clk 0:02:10]} 27. Qe4 {[%clk 0:01:44]}  h6 {[%clk 0:01:40]} 28. Qxd4 {[%clk 0:01:38]}  exd4 {[%clk 0:01:40]} 29. Kg2 {[%clk 0:01:39]}  Kc7 {[%clk 0:01:37]} 30. Kf3 {[%clk 0:01:37]}  Re1 {[%clk 0:01:36]} 31. h4 {[%clk 0:01:32]}  Kd6 {[%clk 0:01:34]} 32. Rc2 {[%clk 0:01:29]}  h5 {[%clk 0:01:28]} 33. Rc4 {[%clk 0:01:27]}  Rb1 {[%clk 0:01:15]} 34. Rxd4+ {[%clk 0:01:26]}  Ke6 {[%clk 0:01:13]} 35. b4 {[%clk 0:01:21]}  Rb3 {[%clk 0:01:09]} 36. a4 {[%clk 0:01:10]}  b5 {[%clk 0:01:09]} 37. a5 {[%clk 0:01:04]}  g5 {[%clk 0:01:07]} 38. hxg5 {[%clk 0:00:58]}  fxg5 {[%clk 0:01:07]} 39. Ke4 {[%clk 0:00:59]}  Rb2 {[%clk 0:01:02]} 40. f4 {[%clk 0:00:55]}  h4 {[%clk 0:00:58]} 41. f5+ {[%clk 0:00:50]}  Ke7 {[%clk 0:00:55]} 42. gxh4 {[%clk 0:00:51]}  gxh4 {[%clk 0:00:55]} 43. Ke5 {[%clk 0:00:43]}  Re2+ {[%clk 0:00:53]} 44. Kd5 {[%clk 0:00:40]}  h3 {[%clk 0:00:53]} 45. Kc6 {[%clk 0:00:36]}  h2 {[%clk 0:00:38]} 46. Rh4 {[%clk 0:00:35]}  Rb2 {[%clk 0:00:38]} 47. Kc5 {[%clk 0:00:31]}  Kf6 {[%clk 0:00:36]} 48. Rh5 {[%clk 0:00:24]}  Rf2 {[%clk 0:00:22]} 49. Kb6 {[%clk 0:00:22]}  Rf4 {[%clk 0:00:21]} 50. Kxa6 {[%clk 0:00:19]}  Rxb4 {[%clk 0:00:21]} 51. Rxh2 {[%clk 0:00:18]}  Kxf5 {[%clk 0:00:18]} 52. Kb7 {[%clk 0:00:18]}  Ra4 {[%clk 0:00:17]} 53. a6 {[%clk 0:00:18]}  b4 {[%clk 0:00:18]} 54. a7 {[%clk 0:00:18]}  Ke5 {[%clk 0:00:18]} 55. a8=Q {[%clk 0:00:18]}  Rxa8 {[%clk 0:00:19]} 56. Kxa8 {[%clk 0:00:19]}  Kd4 {[%clk 0:00:19]} 57. Rb2 {[%clk 0:00:20]}  Kc3 {[%clk 0:00:19]} 58. Rb1 {[%clk 0:00:20]}  b3 {[%clk 0:00:19]} 59. d4 {[%clk 0:00:20]}  Kc2 {[%clk 0:00:19]} 60. Rxb3 {[%clk 0:00:20]} 1-0


[Site "https://www.chess.com"]